Cogmind - Beta 16 @@@ ROGUE MODE // 2026.01.09 @ 20:31:35 Player: AngelSpirit Result: Destroyed by 2E-PXR(R) with Subdweller Shrapnel Launcher Performance ------------- Evolutions (0) 0 Regions Visited (2) 400 Robots Destroyed (37) 185 Value Destroyed (787) 787 Prototype IDs (0) 0 Alien Tech Used (0) 0 Bonus (0) 0 TOTAL SCORE: 1372 Bonus ------- None Cogmind --------- Core Integrity 0/250 Matter 228/300 Energy 74/100 System Corruption 4% Temperature Cool (0) Movement Rolling (175) Ox5 Location -10/Subcaves Parts ------- > --- POWER (1) -------- (None) > --- PROPULSION (2) --- Compact Wheel > --- UTILITY (2) ------ Huge Storage Unit Sensor Array > --- WEAPON (2) ------- Light Cannon Light Cannon > --- INVENTORY (25) --- Ion Engine Ion Engine Subdweller Power Source Subdweller Power Source Spiked Treads High-capacity Matter Pod (200) Seismic Detector Scrap Shield Hacking Suite Makeshift Hacking Suite Subdweller Machine Gun Subdweller Shrapnel Launcher Datajack Makeshift Hammer Peak State ------------ > --- POWER ------------ Subdweller Power Source > --- PROPULSION ------- Compact Wheel Subdweller Monowheel > --- UTILITY ---------- Huge Storage Unit Sensor Array > --- WEAPON ----------- Subdweller Laser Subdweller Machine Gun > --- INVENTORY -------- Ion Engine Ion Engine Subdweller Power Source Spiked Treads Wheel Compact Wheel High-capacity Matter Pod Seismic Detector Scrap Shield Hacking Suite Light Cannon Light Cannon Subdweller Shrapnel Launcher Datajack [Rating: 13] Favorites ----------- Power Ion Engine Engine Ion Engine Propulsion Compact Wheel Wheel Compact Wheel Utility Huge Storage Unit Device Sensor Array Storage Huge Storage Unit Protection Light Armor Plating Weapon Light Cannon Energy Gun Subdweller Laser Ballistic Gun Subdweller Machine Gun Ballistic Cannon Light Cannon Launcher Grenade Launcher Build | -11 -10 -10 ------- Run | Yrd Mat Sub Slots Evolved . | . . . Power . | . . . Propulsion . | . . . Utility . | . . . Weapon . | . . . Parts Attached 23 | 8 7 8 Power 2 | 1 . 1 Engine 2 | 1 . 1 Core . | . . . Reactor . | . . . Propulsion 6 | 3 1 2 Treads . | . . . Leg . | . . . Wheel 6 | 3 1 2 Hover . | . . . Flight . | . . . Utility 5 | 2 2 1 Device 2 | 1 . 1 Storage 2 | 1 1 . Processor . | . . . Hackware . | . . . Protection 1 | . 1 . Artifact . | . . . Weapon 10 | 2 4 4 Energy Gun 4 | 2 1 1 Energy Cannon . | . . . Ballistic Gun 1 | . . 1 Ballistic Cannon 3 | . 2 1 Launcher 2 | . 1 1 Special Weapon . | . . . Impact Weapon . | . . . Slashing Weapon . | . . . Piercing Weapon . | . . . Special Melee Weapon . | . . . Unidentified Prototypes . | . . . Parts Lost 8 | . 3 5 Power 1 | . . 1 Propulsion 3 | . 1 2 Utility 1 | . 1 . Weapon 3 | . 1 2 Highest Loss Streak 3 | . 1 3 To Critical Strikes . | . . . Average Backups 9 | 1 6 12 Power 2 | . 1 2 Propulsion 1 | . . 2 Utility 3 | . 3 4 Weapon 1 | . 1 2 Tool/Special . | . . . Unused Backups 12 | . 1 11 Power 3 | . . 3 Propulsion 1 | . . 1 Utility 6 | . 1 5 Weapon 1 | . . 1 Tool/Special 1 | . . 1 Average Slot Usage (%) 98 | . 97 99 Engine 14 | . 14 14 Wheel 27 | . 26 27 Device 12 | . 10 14 Storage 14 | . 14 14 Protection 1 | . 3 . Energy Gun 10 | . 9 10 Ballistic Gun 2 | . . 4 Ballistic Cannon 14 | . 17 12 Peak Build Rating 13 | 7 8 13 Average Rating 9 | 5 6 11 On Entrance 4 | . 7 7 Avg Prop Armor Cover (%) . | . . . Naked Turns . | . . . Heaviest Build 94 | 13 94 94 Greatest Support 36 | 32 32 36 Greatest Overweight (x) 5 | . 5 3 Average Overweight (x) 1 | . 1 2 Largest Inventory Capacity 25 | 8 25 25 Average Capacity 22 | 7 19 25 Most Carried 17 | 2 8 17 Average Carried 10 | 1 6 13 Final Capacity 25 | 8 25 25 Final Carried 15 | 2 7 15 Class Distribution -------------------- 95% | Mutant 4% | Scavenger-Mutant Dominant Class ---------------- Mutant | -10/Materials Mutant | -10/Subcaves Resources | -11 -10 -10 ----------- Run | Yrd Mat Sub Matter Collected 1303 | 235 637 431 Remotely . | . . . Salvage Created 733 | 38 519 176 Parts 61 | 5 41 15 Haulers Intercepted 2 | . 2 . Recyclers Shooed 1 | . 1 . Parts Field Recycled . | . . . Retrieved Matter . | . . . Parts Self-Destructed 11 | . . 11 Prevented . | . . . Parts Restored . | . . . Kills | -11 -10 -10 ------- Run | Yrd Mat Sub Combat Hostiles Destroyed 26 | . 19 7 Guns 2 | . . 2 Cannons 17 | . 13 4 AOE 7 | . 6 1 Classes Destroyed 10 | 1 7 2 Worker 2 | . 2 . Tunneler 2 | 2 . . Hauler 2 | . 2 . Recycler 1 | . 1 . Operator 2 | . 2 . Watcher 2 | . 2 . Swarmer 11 | . 11 . Grunt 8 | . 8 . Sentry 1 | . . 1 Subdweller 6 | . . 6 Best Kill Streak 8 | 1 8 2 Combat Bots Only 5 | . 5 2 Max Kills in Single Turn 2 | 1 2 1 Gunslinging . | . . . Exploded 2 | . 2 1 Melee . | . . . Uniques/NPCs Destroyed . | . . . Combat | -11 -10 -10 -------- Run | Yrd Mat Sub Hostile Shots Fired 93 | . 63 30 Missed 23 | . 14 9 Hits 70 | . 49 21 Projectile 70 | . 49 21 AOE 3 | . . 3 Critical Strikes 1 | . . 1 Damage Taken 1121 | . 513 608 Core 256 | . 90 166 Absorbed by Shields . | . . . Core Remaining (%) 100 | 100 . . Volleys Fired 110 | 5 70 35 Largest 2 | 2 2 2 Hottest 90 | 80 80 90 Shots Fired 205 | 10 130 65 Gun 81 | 10 39 32 Cannon 119 | . 87 32 Launcher 5 | . 4 1 Special . | . . . Kinetic 135 | . 87 48 Thermal 66 | 10 39 17 Explosive 4 | . 4 . Electromagnetic . | . . . Robot Hit Streak 9 | 5 7 9 Robot Miss Streak 5 | 1 5 3 Penetration Max . | . . . Secondary Targets . | . . . Shots Hit Robots 117 | 7 77 33 Core Hits 48 | 2 36 10 Critical Kills . | . . . Critical Parts Destroyed . | . . . Critical Strikes 2 | . 1 1 Blast 2 | . 1 1 Melee Attacks . | . . . Impact . | . . . Slashing . | . . . Piercing . | . . . Sneak Attacks . | . . . Combat Hostiles . | . . . Follow-up Attacks . | . . . Damage Inflicted 2562 | 82 1701 779 Guns 622 | 82 261 279 Cannons 1435 | . 1048 387 Explosions 505 | . 392 113 Melee . | . . . Ramming . | . . . Kinetic 1718 | . 1048 670 Thermal 452 | 82 261 109 Explosive 392 | . 392 . Electromagnetic . | . . . Impact . | . . . Slashing . | . . . Piercing . | . . . Highest Corruption 4 | . 4 4 Average Corruption 3 | . 2 4 Corruption Purged . | . . . Corruption Blocked . | . . . Effects 30 | . 13 17 Message Errors 8 | . 4 4 Matter Fused 7 | . 3 4 Heat Flow Errors 2 | . . 2 Energy Discharges 4 | . 2 2 Parts Rejected 1 | . 1 . Data Loss (minor) 4 | . 1 3 Misfires 1 | . . 1 Alerts 1 | . . 1 Weapon Failures 2 | . 2 . Overload Shots . | . . . Overflow Damage 12 | . 12 . Projectiles 2 | . 2 . Explosions 10 | . 10 . Melee . | . . . Knockbacks 16 | . 11 5 Impact . | . . . Kinetic 16 | . 11 5 Secondary . | . . . Self-Inflicted Damage 56 | . 56 . Shots 2 | . 2 . Rammed . | . . . Targets Rammed . | . . . Kicked . | . . . Crushed . | . . . Highest Temperature 257 | 54 120 257 Average Temperature 41 | 25 37 116 Received Heat Transfer 171 | . 144 27 Siege Activations . | . . . Martial Activations . | . . . Shielding Activations . | . . . Robots Disrupted . | . . . Combat Hostiles . | . . . Robots Corrupted . | . . . Combat Hostiles . | . . . Parts Fried . | . . . Impact Corruptions . | . . . Robots Melted . | . . . Combat Hostiles . | . . . Parts Melted 2 | 1 . 1 Heat Transferred 850 | 175 550 125 Parts Sabotaged . | . . . Parts Stolen . | . . . Parts Stripped . | . . . Power Chain Reactions . | . . . Alert | -11 -10 -10 ------- Run | Yrd Mat Sub Maximum Alert Level 1 | . 1 . Low Security (%) 64 | 100 60 . Level 1 35 | . 39 . Level 2 . | . . . Level 3 . | . . . Level 4 . | . . . Level 5 . | . . . High Security . | . . . Max Security . | . . . Peak Influence 355 | 5 355 . Initial 3 | . 3 . Average 151 | 1 166 . Influence Increases 669 | 10 639 20 Destroy 0b10 Robot/C 400 | . 380 20 Destroy 0b10 Robot/NC 55 | 10 45 . Destroy Leader 78 | . 78 . Successful Hack 28 | . 28 . Disable Machine 45 | . 45 . Destroy Structure 18 | . 18 . Lose Combat Pursuer 45 | . 45 . Influence Decreases 669 | 5 345 319 Entered New Map 146 | . 2 144 Time Decay 483 | 5 313 165 Lost Part 40 | . 30 10 Squads Dispatched 3 | . 3 . Investigation . | . . . Extermination . | . . . Reinforcement 3 | . 3 . Assault . | . . . Garrison . | . . . Intercept . | . . . Searches Triggered . | . . . Construction Impeded . | . . . Haulers Reinforced . | . . . Active Scanning Responses . | . . . Cargo Convoy Interrupts . | . . . Stealth | -11 -10 -10 --------- Run | Yrd Mat Sub Distress Signals . | . . . Communications Jammed . | . . . Distress Signals . | . . . Times Spotted 40 | . 31 9 Peak Tracking Total 6 | . 6 2 Tactical Retreats 2 | . 2 . Traps | -11 -10 -10 ------- Run | Yrd Mat Sub Traps Triggered 3 | . 2 1 Indirectly . | . . . Trap Hack Attempts . | . . . Triggered . | . . . Disarmed . | . . . Reprogrammed . | . . . Reused . | . . . Traps Extracted . | . . . Installed . | . . . Triggered . | . . . Machines | -11 -10 -10 ---------- Run | Yrd Mat Sub Machines Disabled 4 | . 4 . Max in Single Turn 1 | . 1 . Machines Repaired . | . . . Machines Dismantled . | . . . Machines Sabotaged . | . . . Overloaded Fab Kills . | . . . Hacking | -11 -10 -10 --------- Run | Yrd Mat Sub Machines Accessed 5 | . 5 . Terminals 4 | . 4 . Fabricators . | . . . Repair Stations . | . . . Recycling Units 1 | . 1 . Scanalyzers . | . . . Garrison Access . | . . . Total Hacks 20 | . 20 . Successful 8 | . 8 . Failed 12 | . 12 . Catastrophic 2 | . 2 . Database Lockouts . | . . . Manual 16 | . 16 . Terminals 19 | . 19 . Fabricators . | . . . Repair Stations . | . . . Recycling Units 1 | . 1 . Scanalyzers . | . . . Garrison Access . | . . . Terminal Hacks 2 | . 2 . Robot Analysis 2 | . 2 . Fabricator Hacks . | . . . Repair Station Hacks . | . . . Recycling Unit Hacks 1 | . 1 . Retrieve Components 1 | . 1 . Scanalyzer . | . . . Garrison Access Hacks . | . . . Unauthorized Hacks 5 | . 5 . Terminals 5 | . 5 . Botnet 2 | . 2 . Disrupt 1 | . 1 . Operators 1 | . 1 . Skim 1 | . 1 . Fabricators . | . . . Repair Stations . | . . . Recycling Units . | . . . Scanalyzers . | . . . Garrison Access . | . . . Data Cores Recovered . | . . . Used . | . . . Hacking Detections 4 | . 4 . Full Trace Events 1 | . 1 . Feedback Events 1 | . 1 . Corruption 1 | . 1 . Feedback Blocked . | . . . Robot Schematics Acquired . | . . . Robots Built . | . . . Authchips . | . . . Time . | . . . Total Robot Build Rating . | . . . Part Schematics Acquired . | . . . Parts Built . | . . . Authchips . | . . . Time . | . . . Total Part Build Rating . | . . . Part Studies Acquired . | . . . Parts Repaired . | . . . Time . | . . . Parts Recycled . | . . . Recycled Matter . | . . . Retrieved Matter . | . . . Retrieved Components 2 | . 2 . Parts Scanalyzed . | . . . Part Schematics Acquired . | . . . Parts Damaged . | . . . Bothacking | -11 -10 -10 ------------ Run | Yrd Mat Sub Used RIF Installer . | . . . Robots Hacked . | . . . Non-combat . | . . . Combat . | . . . Robot Hacks Applied . | . . . Relay Couplers Released . | . . . Fabnet Peak Effective % . | . . . Robots Rewired . | . . . Allies Hacked . | . . . Hacks Repelled . | . . . Allies | -11 -10 -10 -------- Run | Yrd Mat Sub Total Allies . | . . . Largest Group . | . . . Highest-Rated Group . | . . . Highest-Rated Ally . | . . . Total Orders . | . . . Ally Attacks . | . . . Total Damage . | . . . Kills . | . . . Allies Corrupted . | . . . Allies Melted . | . . . Intel | -11 -10 -10 ------- Run | Yrd Mat Sub Active Infowar (turns) 1616 | 9 581 1026 Sensors 940 | . . 940 Seismic 676 | 9 581 86 Robot Analysis Total 2 | . 2 . Derelict Logs Recovered 1 | . . 1 Drone Launches . | . . . Drone Recoveries . | . . . Exploration | -11 -10 -10 ------------- Run | Yrd Mat Sub Turns Passed 1884 | 77 781 1026 Spaces Moved 1144 | 52 430 662 Core 1 | 1 . . Treads . | . . . Legs . | . . . Wheels 1143 | 51 430 662 Hover . | . . . Flight . | . . . Fastest Speed 50 | 50 90 129 Average Speed 123 | 93 116 129 Slowest Speed 175 | 100 175 135 Overloaded Moves . | . . . Propulsion Burnouts . | . . . Robots Hopped . | . . . Potential Cave-ins . | . . . Cave-ins Triggered . | . . . Exploration Rate (%) 41 | 3 76 45 Regions Visited 2 Branch Regions 1 Pre-discovered Areas 1 | . . 1 Known Exits Taken . | . . . Unknown Exits Taken 2 | 1 1 . Scrap Searched 1 | . . 1 Spaces Dug . | . . . Terrain Destroyed 29 | . 14 15 Melee . | . . . Projectile . | . . . AOE 29 | . 14 15 Terrain Rammed . | . . . Walls Destroyed . | . . . Machines Disabled . | . . . Actions | -11 -10 -10 --------- Run | Yrd Mat Sub Total 1398 | 66 572 760 Wait 75 | . 42 33 Move 1142 | 51 429 662 Hop . | . . . Pick Up 23 | 2 9 12 Fast Attach 12 | 7 4 1 Attach 5 | . 2 3 Detach 1 | . . 1 Swap 22 | 1 11 10 Drop 8 | . 5 3 Fire 110 | 5 70 35 Melee . | . . . Ram . | . . . Kick . | . . . Crush . | . . . Escape Stasis . | . . . Rewire . | . . . Trap . | . . . Miscellaneous . | . . . Route ------- -11/Scrapyard -10/Materials (discovered 5 exits: [*Mat x2] / [*Min x2] / [*Sub]) -10/Subcaves (discovered 2 exits: [*Mat] / [*Rec]) History --------- Turn | Location | Event 17 | -11/Scrapyard | Discovered new exit (range 16) 78 | -11/Scrapyard | Entered Materials 213 | -10/Materials | Discovered new exit (range 12) 312 | -10/Materials | Build established: Mutant 377 | -10/Materials | Discovered new exit (range 16) 637 | -10/Materials | Discovered new exit (range 15) 658 | -10/Materials | Discovered new exit (range 13) 852 | -10/Materials | Discovered new exit (range 5) 859 | -10/Materials | Entered Subcaves 1022 | -10/Subcaves | Discovered new exit (range 14) 1055 | -10/Subcaves | Core integrity fell below 50% 1128 | -10/Subcaves | Learned location of Zion (-7) 1350 | -10/Subcaves | Discovered new exit (range 4) 1529 | -10/Subcaves | Disturbed a concealed Subdweller 1591 | -10/Subcaves | Shifting Twisted Machinery released Mak. Hammer 1604 | -10/Subcaves | Shifting Twisted Machinery released Mak. Hacking Suite 1870 | -10/Subcaves | Ambushed by Subdweller buried in earth 1871 | -10/Subcaves | Core integrity fell below 20% 1878 | -10/Subcaves | Ambushed by Subdweller buried in earth 1885 | -10/Subcaves | Destroyed by 2E-PXR(R) with Subdweller Shrapnel Launcher Last Messages --------------- 01830_ Subatomizers dissect the Disposable Heat Sink. 01838_ Acquired 20 matter. 01840_ Acquired 17 matter. 01861_ Subatomizers dissect the Disposable Heat Sink. 01867_ System corrupted: Heat flow error (+109). 01870_ Triggered Shrapnel Trap. 01870_ An expanding cloud of shrapnel blasts out in all directions. 01871_ 2E-PXR(R): "ARGHSUB!" 01871_ Sub. Laser shoots sparks and powers down. 01873_ Broken Sub. Laser destroyed. 01875_ 2E-PXR(R) knocked back. 01879_ O6-9ZH(R): "FREEEEDUMB!" 01880_ Wheel destroyed. 01881_ 2E-PXR(R) knocked back. 01881_ Sub. Machine Gun shoots sparks and powers down. 01881_ Sub. Power Source destroyed. Map ----- +----------------------------------------------------+ | ?????????????????????????????????????????????? | | ?????????????????????????????????????????????? | | ?????????????????????????????????????????????? | | ?????????????????????????????????????????????? | | ????????????????????????# ??????????????????? | | ???????????????????????# ??????????????????? | | ???????????????????????# ??????????????????? | | ??????????????????????## #####?????????????? | | ??????????????????????? ##????????????? | | ??????????????????????? ##???????????? | | ???????????????????????? ????????????? | | ????????????????????????# #????????????? | | ???????????????????###?## % ?????????????? | | ??????????????????## ## #?????????????? | | ??????????????????# #?????????????? | | ??????????????????# #?????????????? | | ???????????????????# #?????????????? | | ??????????????????## #??????????????? | | ?????????????????## ####???????????? | | ?????????????????# ##??????????? | | ?????????????????# ## ####???????? | | ????????????????##; ;;; ## #???????? | | ????????????????# ### ##???????? | | ????????????????# #?## ##???????? | | ????????????????# #### #???????? | | ????????????????# R @ ;;! #???????? | | ????????????????# ;; & #???????? | | ???????????????# ! * ##???????? | | ???????????????### ! ;#????????? | | ????????????????## # ;;#????????? | | ???????????????## ;;;##????????? | | ??????????????## ####????????? | | ??????????????# ;# ##???????? | | ??????????????## ; #???????? | | ???????????????# #???????? | | ???????????????#### #???????? | | ??????????????????# ## R #???????? | | ????????????????# #?## ##??????? | | ??????????????? ##???? ;# ###????? | | ??????????????# #?????####### ##???? | | ??????????????## ???###?# ### ###?? | | ???????????????????## ### # #?? | | ??????????????????## ## # #?? | | ?????????????????## ## ##### ##?? | | ????????????????## ### ##??## ###??? | | ????????????????# ## ##### ##????? | | ????????????????# ## ##????? | | ????????????????# #????? | | ???????????????## ##???? | | ???????????????# ##### #### #???? | +----------------------------------------------------+ Best States ------------- Heat Dissipation 25 Energy Generation 15 Energy Capacity 250 Matter Stores 300 Matter Capacity 300 Sight Range 16 Robot Scan Range 14 Terrain Scan Density 10 Armor Coverage 150 Evasion (%) 42 Item Schematics ----------------- None Robot Schematics ------------------ None Fabricated ------------ Nothing Repaired ---------- Nothing Studied --------- None Alien Tech Used ----------------- None Achievements -------------- None Challenges ------------ None Game ------ Seed NodeCompositeMagmablaster Manual? 0 Play Time 00:14:06 Cumulative 399.6 hours Start 2026.01.09 @ 20:19:00 End 2026.01.09 @ 20:31:35 Sessions 1 Manual Loads 0 Difficulty Rogue Special Mode None Game No. 141 Rogue 141 Adventurer 0 Explorer 0 Win Type - Total 10 Types 5/0/1/1/0/0/0/1/0/2 Lore% 84 Gallery% 80 Achievement% 70 Wizard Run 0 Options --------- Layout 1 ASCII 0 Keyboard 0 Movement Mouse Keybinds 0 Fullscreen 2 Font 32/SmallcapsGlow Map View 50x35 Zoom Use 0% Tactical HUD 1 Map Filters NONE Filters NONE Steam 1 RUN: de5bf2f7-3343-495e-8e87-fbb178d28845